bitfinex/quotes_BTCUSD_20241002
["timestamp","ask_amount","ask_price","bid_price","bid_amount"]
[1727863168398,0.001,61367.0,61366.0,0.42295849]
[1727863169026,0.001,61367.0,61366.0,0.271056]
[1727863169277,0.001,61367.0,61366.0,0.2670779]
[1727863169493,0.162944,61371.0,61368.0,0.16295]
[1727863169700,0.001,61367.0,61366.0,0.85104655]
[1727863169914,0.001,61367.0,61366.0,0.598966]
[1727863170123,0.001,61367.0,61366.0,0.6079879]
[1727863170335,0.001,61367.0,61366.0,0.75989039]
[1727863170541,0.24305865,61379.0,61376.0,0.162928]
[1727863170968,0.16292,61380.0,61376.0,0.162928]
[1727863171174,0.16292,61380.0,61377.0,0.0090219]
[1727863171590,0.162922,61379.0,61377.0,0.0090219]
[1727863171837,0.1884576,61380.0,61377.0,0.0090219]
[1727863172048,0.162923,61379.0,61378.0,0.0090219]
[1727863172262,0.162923,61379.0,61374.0,0.325866]
[1727863172475,0.162923,61379.0,61373.0,0.47777749]
[1727863172476,0.162923,61379.0,61378.0,0.0090219]
[1727863172704,0.162931,61376.0,61371.0,0.325884]
[1727863172906,0.162931,61376.0,61373.0,0.40599565]
[1727863173124,0.325846,61379.0,61373.0,0.162937]
[1727863173335,0.32585,61378.0,61371.0,0.325884]
[1727863173562,0.32585,61378.0,61374.0,0.164934]
[1727863173563,0.162928,61377.0,61374.0,0.164934]
[1727863173788,0.162928,61377.0,61374.0,0.162934]
[1727863174019,0.001,61376.0,61374.0,0.162934]
[1727863174228,0.001,61376.0,61372.0,0.325876]
[1727863174229,0.002,61376.0,61372.0,0.325876]
[1727863174453,0.001,61376.0,61373.0,0.15190249]
[1727863175123,0.001,61376.0,61373.0,0.31483949]
[1727863175615,0.162928,61377.0,61373.0,0.31483949]
[1727863176107,0.162939,61373.0,61368.0,0.325898]
[1727863176321,0.162933,61375.0,61373.0,0.006]
[1727863176970,0.001,61376.0,61373.0,0.011]
[1727863177196,0.16293,61376.0,61374.0,0.24305865]
[1727863177405,0.162917,61381.0,61378.0,0.162923]
[1727863177611,0.162917,61381.0,61377.0,0.162927]
[1727863178051,0.327467,61382.0,61374.0,0.47777149]
[1727863178238,0.327467,61382.0,61377.0,0.162926]
[1727863178239,0.162917,61381.0,61377.0,0.162926]
[1727863178689,0.162924,61379.0,61375.0,0.162932]
[1727863178898,0.162924,61379.0,61376.0,0.162929]
[1727863179321,0.327467,61382.0,61374.0,0.47777149]
[1727863179586,0.327467,61382.0,61377.0,0.002]
[1727863179807,0.325836,61381.0,61374.0,0.47777149]
[1727863180013,0.162921,61380.0,61376.0,0.16293]
[1727863180239,0.162921,61380.0,61376.0,0.16693]
[1727863180476,0.001638,61382.0,61376.0,0.004]
[1727863180682,0.001638,61382.0,61374.0,0.15190249]
[1727863180899,0.162924,61378.0,61377.0,0.001]
[1727863182584,0.162924,61378.0,61377.0,0.0100219]
[1727863182798,0.162924,61378.0,61377.0,0.001]
[1727863183004,0.162924,61378.0,61377.0,0.0110219]
[1727863183221,0.162924,61378.0,61377.0,0.001]
[1727863183399,0.162924,61378.0,61377.0,0.0119722]
[1727863183632,0.162924,61378.0,61377.0,0.002]
[1727863183841,0.162924,61378.0,61377.0,0.0109722]
[1727863184048,0.162924,61378.0,61377.0,0.002]
[1727863184251,0.162924,61378.0,61377.0,0.0109722]
[1727863184662,0.162924,61378.0,61377.0,0.0129722]
[1727863185293,0.162922,61379.0,61377.0,0.0129722]
[1727863185730,0.18845671,61381.0,61378.0,0.162924]
[1727863185942,0.16292,61380.0,61377.0,0.1758982]
[1727863186154,0.16292,61380.0,61377.0,0.166926]
[1727863186364,0.16292,61380.0,61378.0,0.0089722]
[1727863186569,0.162922,61379.0,61378.0,0.0089722]
[1727863186772,0.162922,61379.0,61377.0,0.001]
[1727863186974,0.162922,61379.0,61378.0,0.0089722]
[1727863187364,0.02553871,61381.0,61378.0,0.24347469]
[1727863187598,0.001638,61382.0,61381.0,0.162916]
[1727863187821,0.001638,61382.0,61381.0,0.33827372]
[1727863188037,0.001638,61382.0,61381.0,0.39269354]
[1727863189298,0.001638,61382.0,61381.0,0.34393126]
[1727863189498,0.002638,61382.0,61381.0,0.34993126]
[1727863189903,0.001638,61382.0,61381.0,0.34393126]
[1727863190124,0.001638,61382.0,61381.0,0.58038799]
[1727863190326,0.002638,61382.0,61381.0,0.59338799]
[1727863190530,0.002638,61382.0,61381.0,0.86998544]
[1727863190937,0.003638,61382.0,61381.0,0.88298544]
[1727863191546,0.003638,61382.0,61381.0,0.80984201]
[1727863192150,0.003638,61382.0,61381.0,0.88304169]
[1727863193075,0.003638,61382.0,61381.0,0.55762571]
[1727863193528,0.003638,61382.0,61381.0,0.63082539]
[1727863193700,0.003638,61382.0,61381.0,0.55762571]
[1727863193903,0.003638,61382.0,61381.0,0.55962571]
[1727863194153,0.003638,61382.0,61381.0,0.60641866]
[1727863194154,0.02917091,61382.0,61381.0,0.60641866]
[1727863194634,0.02917091,61382.0,61381.0,0.60641479]
[1727863196402,0.02917091,61382.0,61381.0,0.70641479]
[1727863197437,0.02917091,61382.0,61381.0,0.70841479]
[1727863197863,0.02917091,61382.0,61381.0,0.65962571]
[1727863198062,0.02917091,61382.0,61381.0,0.73282539]
[1727863198455,0.02917091,61382.0,61381.0,0.98969725]
[1727863198700,0.02917091,61382.0,61381.0,0.73282539]
[1727863200247,0.02917091,61382.0,61381.0,0.65762571]
[1727863200472,0.02917091,61382.0,61381.0,0.19783126]
[1727863200678,0.166552,61382.0,61381.0,0.03491526]
[1727863201340,0.165552,61382.0,61381.0,0.02191526]
[1727863201794,0.33024645,61382.0,61381.0,0.02191526]
[1727863202269,0.32924645,61382.0,61381.0,0.00891526]
[1727863203183,0.33024645,61382.0,61381.0,0.01591526]
[1727863203391,0.33024645,61382.0,61381.0,0.01991526]
[1727863203608,0.33224645,61382.0,61381.0,0.01991526]
[1727863203812,0.33124645,61382.0,61381.0,0.00891526]
[1727863204030,0.002,61379.0,61359.0,0.24305865]
[1727863204235,0.0625,61381.0,61359.0,0.24305865]
[1727863204236,0.162948,61369.0,61368.0,0.24305865]
[1727863204447,0.162959,61365.0,61359.0,0.24305865]
[1727863204666,0.213159,61365.0,61359.0,0.24305865]
[1727863205698,0.213159,61365.0,61352.0,0.40605165]
[1727863205907,0.38385345,61365.0,61364.0,0.001819]
[1727863206521,0.48385345,61365.0,61364.0,0.001819]
[1727863207357,0.48785345,61365.0,61364.0,0.001819]
[1727863210531,0.57795345,61365.0,61364.0,0.001819]
[1727863210760,0.57995345,61365.0,61364.0,0.001819]
[1727863210975,0.57795345,61365.0,61364.0,0.001819]
[1727863211598,0.57795345,61365.0,61352.0,0.24305865]
[1727863211599,0.162991,61353.0,61352.0,0.24305865]
[1727863211811,0.32768545,61353.0,61352.0,0.24305865]
[1727863212222,0.325995,61351.0,61345.0,0.24305865]
[1727863212425,0.163009,61346.0,61345.0,0.24305865]
[1727863212840,0.326009,61348.0,61341.0,0.163022]
[1727863213064,0.16469445,61350.0,61340.0,0.163025]
[1727863213516,0.326013,61348.0,61343.0,0.163016]
[1727863213698,0.35156536,61348.0,61341.0,0.16302]
[1727863213905,0.489029,61346.0,61345.0,0.004]
[1727863214119,0.163009,61346.0,61345.0,0.004]
[1727863214348,0.163014,61345.0,61341.0,0.163023]
[1727863214552,0.163015,61344.0,61341.0,0.163021]
[1727863215188,0.163018,61343.0,61340.0,0.163025]
[1727863215395,0.326038,61343.0,61339.0,0.00082]
[1727863215601,0.163016,61344.0,61340.0,0.163024]
[1727863215816,0.163023,61341.0,61339.0,0.00082]
[1727863216022,0.326036,61343.0,61339.0,0.00082]
[1727863216023,0.326035,61343.0,61339.0,0.00082]
[1727863216234,0.32601,61348.0,61339.0,0.00082]
[1727863216446,0.163025,61340.0,61339.0,0.00082]
[1727863216878,0.16469445,61347.0,61339.0,0.00082]
[1727863217101,0.325994,61351.0,61346.0,0.15190249]
[1727863217359,0.162992,61353.0,61350.0,0.15190249]
[1727863217577,0.24305865,61362.0,61350.0,0.31490049]
[1727863217783,0.325959,61358.0,61352.0,0.162992]
[1727863217989,0.325959,61358.0,61350.0,0.15190249]
[1727863217990,0.162989,61354.0,61350.0,0.31490049]
[1727863218226,0.162989,61354.0,61350.0,0.15272149]
[1727863218442,0.325974,61355.0,61350.0,0.15272149]
[1727863218655,0.162986,61355.0,61350.0,0.47871749]
[1727863218862,0.16299,61354.0,61351.0,0.162996]
[1727863219488,0.005,61354.0,61350.0,0.15372149]
[1727863219701,0.02554994,61354.0,61352.0,0.162991]
[1727863219941,0.005,61354.0,61352.0,0.162991]
[1727863220568,0.005,61354.0,61353.0,0.162991]
[1727863221203,0.005,61354.0,61352.0,0.162993]
[1727863221621,0.005,61354.0,61353.0,0.162991]
[1727863221822,0.162981,61357.0,61353.0,0.16299]
[1727863222022,0.006,61354.0,61353.0,0.16299]
[1727863222440,0.162981,61357.0,61353.0,0.16299]
[1727863222647,0.162984,61356.0,61352.0,0.007]
[1727863222851,0.162984,61356.0,61352.0,0.169991]
[1727863223060,0.162991,61353.0,61350.0,0.163817]
[1727863223271,0.162989,61354.0,61353.0,0.005]
[1727863223536,0.162989,61354.0,61353.0,0.01]
[1727863223750,0.18853857,61354.0,61353.0,0.01]
[1727863223960,0.18853857,61354.0,61353.0,0.005]
[1727863224178,0.02554957,61354.0,61351.0,0.488987]
[1727863224400,0.02554957,61354.0,61352.0,0.162992]
[1727863224638,0.02554957,61354.0,61353.0,0.162991]
[1727863224927,0.02554957,61354.0,61353.0,0.1662508]
[1727863225151,0.02554957,61354.0,61353.0,0.62424525]
[1727863225152,0.02549957,61354.0,61353.0,0.62424525]
[1727863225362,0.02549957,61354.0,61353.0,0.62598545]
[1727863226244,0.02549957,61354.0,61353.0,0.63898545]
[1727863226682,0.02649957,61354.0,61353.0,0.65664104]
[1727863227105,0.02649957,61354.0,61353.0,0.65164104]
[1727863228588,0.02649957,61354.0,61353.0,0.65364104]
[1727863228792,0.02649957,61354.0,61353.0,0.65164104]
[1727863229000,0.02649957,61354.0,61353.0,0.65364104]
[1727863229215,0.02649957,61354.0,61353.0,0.65164104]
[1727863229848,0.02649957,61354.0,61353.0,0.65364104]
[1727863230505,0.02649957,61354.0,61353.0,0.459291]
[1727863230710,0.02649957,61354.0,61353.0,0.359291]
[1727863231142,0.001,61354.0,61353.0,0.359291]
[1727863231776,0.001,61354.0,61353.0,0.54698545]
[1727863233959,0.001,61354.0,61353.0,0.359291]
[1727863234590,0.001,61354.0,61353.0,0.026]
[1727863234801,0.001,61354.0,61353.0,0.188991]
[1727863236997,0.001,61354.0,61353.0,0.36215023]
[1727863237220,0.001,61354.0,61353.0,0.358891]
[1727863240466,0.001,61354.0,61353.0,0.54658545]
[1727863241219,0.001,61354.0,61353.0,0.64658545]
[1727863241505,0.001,61354.0,61353.0,0.65358545]
[1727863241741,0.001,61354.0,61353.0,0.65240445]
[1727863242725,0.001,61354.0,61353.0,0.70299292]
[1727863242963,0.001,61354.0,61353.0,0.65440445]
[1727863243409,0.001638,61364.0,61363.0,0.162964]
[1727863243627,0.001638,61364.0,61363.0,0.31486649]
[1727863244747,0.002638,61364.0,61363.0,0.32186649]
[1727863245213,0.002638,61364.0,61363.0,0.32886649]
[1727863249008,0.002638,61364.0,61363.0,0.176964]
[1727863250328,0.002638,61364.0,61363.0,0.014]
[1727863250561,0.165599,61364.0,61363.0,0.014]
[1727863251011,0.33029345,61364.0,61363.0,0.014]
[1727863251451,0.33029345,61364.0,61363.0,0.007]
[1727863251683,0.33029345,61364.0,61363.0,0.009]
[1727863252177,0.162979,61358.0,61355.0,0.162984]
[1727863252396,0.325933,61363.0,61355.0,0.325971]
[1727863252618,0.001638,61364.0,61361.0,0.15190249]
[1727863252836,0.001638,61364.0,61363.0,0.162964]
[1727863253058,0.002638,61364.0,61363.0,0.162964]
[1727863254592,0.002638,61364.0,61363.0,0.16622296]
[1727863254815,0.002638,61364.0,61363.0,0.35591741]
[1727863255021,0.002638,61364.0,61363.0,0.35265845]
[1727863255240,0.001638,61382.0,61363.0,0.35265845]
[1727863255241,0.001638,61382.0,61376.0,0.16293]
[1727863255504,0.001638,61382.0,61376.0,0.31483249]
[1727863255786,0.001638,61382.0,61381.0,0.162916]
[1727863256665,0.001638,61382.0,61381.0,0.35061045]
[1727863257345,0.001638,61382.0,61381.0,0.162916]
[1727863258412,0.2356531,61392.0,61381.0,0.02]
[1727863258628,0.3985421,61392.0,61388.0,0.162897]
[1727863258838,0.325773,61393.0,61388.0,0.162897]
[1727863259044,0.16289,61391.0,61388.0,0.162897]
[1727863259907,0.48866,61393.0,61389.0,0.162895]
[1727863260131,0.325762,61395.0,61388.0,0.15190249]
[1727863260396,0.0786,61406.0,61395.0,0.162878]
[1727863260397,0.162872,61398.0,61395.0,0.162878]
[1727863260635,0.16469445,61405.0,61391.0,0.0784]
[1727863260875,0.16469445,61405.0,61397.0,0.15190249]
[1727863260876,0.162871,61398.0,61397.0,0.15190249]
[1727863261092,0.162871,61398.0,61391.0,0.0784]
[1727863261093,0.162872,61398.0,61395.0,0.162878]
[1727863261318,0.001,61395.0,61393.0,0.162882]
[1727863261534,0.163879,61395.0,61392.0,0.15190249]
[1727863261761,0.325755,61396.0,61386.0,0.404205]
[1727863261980,0.325761,61395.0,61391.0,0.001]
[1727863262222,0.162887,61392.0,61391.0,0.002]
[1727863262870,0.325765,61394.0,61391.0,0.002]
[1727863263081,0.162886,61393.0,61391.0,0.002]
[1727863263300,0.162887,61392.0,61391.0,0.001]
[1727863263535,0.162892,61391.0,61387.0,0.24305865]
[1727863263965,0.162892,61391.0,61385.0,0.15190249]
[1727863263966,0.162896,61389.0,61385.0,0.15190249]
[1727863264177,0.162896,61389.0,61385.0,0.31480649]
[1727863264394,0.162903,61386.0,61385.0,0.15190249]
[1727863264641,0.326764,61394.0,61384.0,0.162908]
[1727863264914,0.162899,61388.0,61387.0,0.001]
[1727863265144,0.325781,61391.0,61385.0,0.15190249]
[1727863265370,0.162896,61389.0,61385.0,0.31480649]
[1727863265601,0.162903,61386.0,61385.0,0.003]
[1727863266485,0.162903,61386.0,61385.0,0.006]
[1727863266749,0.162903,61386.0,61385.0,0.003]
[1727863266977,0.325805,61387.0,61380.0,0.162919]
[1727863267241,0.162911,61384.0,61380.0,0.162919]
[1727863267503,0.32582,61384.0,61379.0,0.24305865]
[1727863267723,0.325835,61381.0,61377.0,0.15190249]
[1727863267931,0.101636,61392.0,61375.0,0.0774]
[1727863267932,0.101636,61392.0,61385.0,0.006]
[1727863268155,0.162903,61386.0,61385.0,0.006]
[1727863268805,0.325803,61387.0,61380.0,0.24305865]
[1727863268806,0.162911,61383.0,61380.0,0.24305865]
[1727863269052,0.325816,61385.0,61380.0,0.24305865]
[1727863269267,0.16469445,61391.0,61380.0,0.24305865]
[1727863269268,0.162891,61391.0,61386.0,0.162903]
[1727863269484,0.1629,61388.0,61383.0,0.162909]
[1727863269701,0.162902,61387.0,61383.0,0.162911]
[1727863269929,0.101636,61392.0,61381.0,0.47773149]
[1727863269930,0.162908,61384.0,61381.0,0.15190249]
[1727863270361,0.162904,61386.0,61382.0,0.162913]
[1727863271011,0.325788,61390.0,61385.0,0.162905]
[1727863271231,0.325788,61390.0,61384.0,0.325815]
[1727863271522,0.244191,61391.0,61388.0,0.162898]
[1727863272181,0.162899,61388.0,61383.0,0.330822]
[1727863272850,0.162899,61388.0,61382.0,0.006]
[1727863272851,0.325797,61388.0,61382.0,0.006]
[1727863273071,0.325806,61387.0,61378.0,0.24305865]
[1727863273293,0.325805,61387.0,61378.0,0.24305865]
[1727863273508,0.16292,61380.0,61378.0,0.24305865]
[1727863273726,0.162917,61381.0,61378.0,0.24305865]
[1727863273940,0.162917,61381.0,61374.0,0.419367]
[1727863273941,0.162922,61379.0,61375.0,0.240332]
[1727863274168,0.162922,61379.0,61374.0,0.0935]
[1727863274392,0.16292,61380.0,61378.0,0.005]
[1727863274622,0.162922,61379.0,61378.0,0.005]
[1727863274860,0.162943,61371.0,61370.0,0.479]
[1727863275153,0.162943,61371.0,61360.0,0.7849]
[1727863275154,0.162959,61365.0,61360.0,0.407741]
[1727863275375,0.162959,61366.0,61360.0,0.407741]
[1727863275602,0.325911,61367.0,61362.0,0.162966]
[1727863275814,0.24305865,61375.0,61362.0,0.162966]
[1727863275815,0.325888,61371.0,61362.0,0.325931]
[1727863276040,0.162946,61370.0,61365.0,0.162959]
[1727863276256,0.162943,61371.0,61367.0,0.162953]
[1727863276546,0.162943,61371.0,61367.0,0.15190249]
[1727863276765,0.325879,61373.0,61367.0,0.15190249]
[1727863276973,0.1,61383.0,61371.0,0.15190249]
[1727863277183,0.1,61383.0,61372.0,0.162939]
[1727863277184,0.162934,61375.0,61372.0,0.162939]
[1727863277392,0.325861,61376.0,61371.0,0.15190249]
[1727863277603,0.162933,61375.0,61371.0,0.15190249]
[1727863277839,0.325849,61379.0,61372.0,0.16294]
[1727863278048,0.325849,61379.0,61372.0,0.32588]
[1727863278261,0.49052245,61382.0,61372.0,0.32588]
[1727863278262,0.16469445,61382.0,61372.0,0.40658]
[1727863278484,0.162919,61380.0,61375.0,0.15190249]
[1727863278692,0.162922,61379.0,61376.0,0.162928]
[1727863278900,0.162919,61380.0,61376.0,0.162928]
[1727863279354,0.162932,61376.0,61372.0,0.24364]
[1727863279575,0.162927,61377.0,61374.0,0.162934]
[1727863279803,0.001,61379.0,61376.0,0.001]
[1727863280026,0.163922,61379.0,61376.0,0.163929]
[1727863280267,0.162922,61379.0,61376.0,0.162929]
[1727863280467,0.24305865,61384.0,61372.0,0.406577]
[1727863280683,0.162928,61377.0,61374.0,0.162934]
[1727863280896,0.325849,61379.0,61376.0,0.001]
[1727863281107,0.162927,61377.0,61376.0,0.001]
[1727863281540,0.32585,61378.0,61372.0,0.0807]
[1727863281754,0.16293,61376.0,61373.0,0.162936]
[1727863281968,0.325862,61376.0,61367.0,0.15190249]
[1727863282181,0.162949,61369.0,61368.0,0.24305865]
[1727863282621,0.162949,61369.0,61364.0,0.40374]
[1727863282849,0.325828,61382.0,61364.0,0.40374]
[1727863283053,0.162947,61370.0,61364.0,0.40374]
[1727863283266,0.325887,61371.0,61365.0,0.325914]
[1727863283267,0.162945,61371.0,61365.0,0.325914]
[1727863283507,0.325876,61373.0,61368.0,0.17295]
[1727863283763,0.162944,61371.0,61366.0,0.325909]
[1727863284002,0.162944,61371.0,61367.0,0.162953]
[1727863284514,0.162945,61371.0,61367.0,0.162953]
[1727863284516,0.325876,61373.0,61368.0,0.162951]
[1727863284785,0.162941,61372.0,61369.0,0.162947]
[1727863285272,0.162923,61379.0,61371.0,0.15190249]
[1727863285512,0.162917,61381.0,61377.0,0.162925]
[1727863285754,0.001,61382.0,61378.0,0.162924]
[1727863285976,0.162917,61381.0,61378.0,0.162924]
[1727863286220,0.101636,61392.0,61380.0,0.15190249]
[1727863286444,0.101636,61392.0,61390.0,0.15190249]
[1727863286665,0.24419,61391.0,61390.0,0.15190249]
[1727863286960,0.162894,61390.0,61386.0,0.31480449]
[1727863287471,0.162894,61390.0,61386.0,0.15190249]
[1727863287714,0.162894,61390.0,61386.0,0.31480449]
[1727863287983,0.0813,61391.0,61386.0,0.47770749]
[1727863288469,0.0813,61391.0,61387.0,0.3258]
[1727863288714,0.0823,61391.0,61386.0,0.15190249]
[1727863288956,0.0813,61391.0,61388.0,0.162896]
[1727863289217,0.0813,61391.0,61390.0,0.31479449]
[1727863289468,0.0823,61391.0,61390.0,0.31479449]
[1727863289740,0.0813,61391.0,61390.0,0.31479449]
[1727863290791,0.0813,61391.0,61390.0,0.31779449]
[1727863291709,0.0813,61391.0,61390.0,0.32079449]
[1727863293522,0.0813,61391.0,61390.0,0.168892]
[1727863293805,0.24419,61391.0,61390.0,0.006]
[1727863294315,0.6519431,61391.0,61390.0,0.006]
[1727863294592,0.60558445,61391.0,61390.0,0.006]
[1727863294869,0.60558445,61391.0,61390.0,0.003]
[1727863295381,0.162924,61378.0,61370.0,0.162944]
[1727863295846,0.162924,61378.0,61372.0,0.16294]
[1727863296108,0.162933,61375.0,61372.0,0.16294]
[1727863297393,0.16293,61376.0,61372.0,0.16294]
[1727863297650,0.16293,61376.0,61369.0,0.0966]
[1727863297651,0.101636,61392.0,61371.0,0.325883]
[1727863297893,0.162927,61377.0,61372.0,0.002]
[1727863298167,0.162938,61373.0,61372.0,0.002]
[1727863298386,0.162938,61373.0,61370.0,0.162944]
[1727863298647,0.162938,61373.0,61366.0,0.325912]
[1727863298648,0.162942,61372.0,61366.0,0.325912]
[1727863298926,0.162947,61370.0,61366.0,0.162955]
[1727863299192,0.162938,61373.0,61372.0,0.002]
[1727863299452,0.162949,61369.0,61364.0,0.163777]
[1727863299716,0.162946,61370.0,61364.0,0.326739]
[1727863299915,0.24305865,61379.0,61364.0,0.326739]
[1727863299916,0.325867,61375.0,61364.0,0.000818]
[1727863300158,0.325902,61369.0,61367.0,0.006]
[1727863300405,0.325902,61369.0,61364.0,0.163779]
[1727863300406,0.162951,61368.0,61364.0,0.163779]
[1727863300653,0.162954,61367.0,61364.0,0.000818]
[1727863300925,0.162951,61368.0,61365.0,0.162958]
[1727863301165,0.325888,61371.0,61364.0,0.007818]
[1727863301429,0.162949,61369.0,61365.0,0.162958]
[1727863301725,0.162951,61368.0,61365.0,0.162958]
[1727863301970,0.162951,61368.0,61364.0,0.170779]
[1727863302169,0.48884,61370.0,61365.0,0.162958]
[1727863302393,0.162947,61370.0,61367.0,0.007]
[1727863302603,0.162949,61369.0,61367.0,0.007]
[1727863302811,0.162949,61369.0,61365.0,0.162956]
[1727863303022,0.162949,61369.0,61365.0,0.170956]
[1727863303507,0.162951,61369.0,61365.0,0.008]
[1727863303775,0.488839,61370.0,61367.0,0.006]
[1727863304007,0.162952,61368.0,61365.0,0.162958]
[1727863304235,0.162955,61367.0,61364.0,0.008818]
[1727863304447,0.325898,61369.0,61364.0,0.000818]
[1727863304658,0.162952,61368.0,61364.0,0.163778]
[1727863304873,0.325879,61373.0,61365.0,0.007]
[1727863305088,0.162948,61369.0,61365.0,0.007]
[1727863305292,0.162948,61369.0,61366.0,0.31485849]
[1727863305713,0.162948,61369.0,61366.0,0.15190249]
[1727863305929,0.325898,61369.0,61366.0,0.15190249]
[1727863306160,0.162952,61368.0,61366.0,0.15190249]
[1727863306798,0.162952,61368.0,61366.0,0.15890249]
[1727863307277,0.162952,61368.0,61366.0,0.15190249]
[1727863307466,0.162952,61368.0,61366.0,0.15990249]
[1727863307702,0.162951,61368.0,61366.0,0.15990249]
[1727863307926,0.325878,61373.0,61366.0,0.008]
[1727863307927,0.162954,61367.0,61366.0,0.008]
[1727863308409,0.32764845,61367.0,61366.0,0.008]
[1727863309063,0.42764845,61367.0,61366.0,0.016]
[1727863309277,0.42764845,61367.0,61366.0,0.008]
[1727863309500,0.42764845,61367.0,61366.0,0.013]
[1727863309712,0.42764845,61367.0,61366.0,0.005]
[1727863309927,0.162959,61365.0,61364.0,0.000818]
[1727863310154,0.32765345,61365.0,61364.0,0.000818]
[1727863310970,0.162959,61365.0,61364.0,0.000818]
[1727863311474,0.1,61378.0,61364.0,0.32742049]
[1727863311726,0.162954,61367.0,61364.0,0.49338149]
[1727863312224,0.162946,61370.0,61367.0,0.162953]
[1727863312474,0.162949,61369.0,61365.0,0.162957]
[1727863312955,0.162949,61369.0,61366.0,0.162956]
[1727863313434,0.162944,61371.0,61365.0,0.325913]
[1727863313705,0.162946,61370.0,61367.0,0.162953]
[1727863313961,0.001,61369.0,61367.0,0.162953]
[1727863314231,0.162949,61369.0,61365.0,0.48887]
[1727863314478,0.325887,61371.0,61364.0,0.175518]
[1727863314725,0.162955,61367.0,61365.0,0.000818]
[1727863315021,0.162956,61366.0,61365.0,0.000818]
[1727863315289,0.488856,61368.0,61365.0,0.000818]
[1727863315579,0.162955,61367.0,61365.0,0.000818]
[1727863315847,0.162954,61367.0,61365.0,0.000818]
[1727863316883,0.162954,61367.0,61365.0,0.002818]
[1727863317404,0.162954,61367.0,61365.0,0.005818]
[1727863317612,0.325892,61370.0,61365.0,0.005818]
[1727863317613,0.325892,61370.0,61365.0,0.331736]
[1727863317853,0.162951,61368.0,61365.0,0.168776]
[1727863318105,0.162956,61366.0,61365.0,0.005818]
[1727863319036,0.162954,61367.0,61365.0,0.003818]
[1727863319620,0.162954,61367.0,61365.0,0.000818]
[1727863320007,0.162954,61367.0,61365.0,0.003818]
[1727863320217,0.162954,61367.0,61365.0,0.000818]
[1727863320429,0.162954,61367.0,61365.0,0.002818]
[1727863320647,0.162954,61367.0,61365.0,0.005818]
[1727863320889,0.325204,61368.0,61365.0,0.005818]
[1727863321084,0.162956,61366.0,61365.0,0.005818]
[1727863322181,0.162956,61366.0,61365.0,0.003818]
[1727863322567,0.162956,61366.0,61365.0,0.004818]
[1727863322647,0.16208864,61366.0,61365.0,0.000818]
[1727863322862,0.16208864,61366.0,61365.0,0.002818]
[1727863322863,0.15380534,61366.0,61365.0,0.002818]
[1727863323056,0.15380534,61366.0,61365.0,0.004818]
[1727863323682,0.15380534,61366.0,61365.0,0.002818]
[1727863323901,0.15380534,61366.0,61365.0,0.005818]
[1727863326491,0.31849979,61366.0,61365.0,0.005818]
[1727863326732,0.39869979,61366.0,61365.0,0.005818]
[1727863327394,0.31849979,61366.0,61365.0,0.005818]
[1727863327889,0.652746,61368.0,61365.0,0.005818]
[1727863327890,0.326842,61368.0,61365.0,0.005818]
[1727863328118,0.001638,61368.0,61367.0,0.15190249]
[1727863328326,0.164589,61368.0,61367.0,0.15190249]
[1727863328537,0.164589,61368.0,61366.0,0.162954]
[1727863328538,0.001638,61368.0,61366.0,0.162954]
[1727863328739,0.001638,61368.0,61367.0,0.162954]
[1727863329004,0.162956,61366.0,61365.0,0.003818]
[1727863329220,0.001638,61368.0,61365.0,0.000818]
[1727863329444,0.162955,61367.0,61365.0,0.000818]
[1727863329653,0.001638,61368.0,61365.0,0.000818]
[1727863329899,0.001638,61368.0,61365.0,0.001818]
[1727863330148,0.164591,61368.0,61365.0,0.001818]
[1727863330363,0.001638,61368.0,61365.0,0.000818]
[1727863330573,0.162954,61367.0,61365.0,0.002818]
[1727863330780,0.16459,61368.0,61365.0,0.165776]
[1727863331470,0.001638,61368.0,61365.0,0.328736]
[1727863331705,0.001638,61368.0,61367.0,0.40915649]
[1727863332700,0.001638,61368.0,61367.0,0.0943]
[1727863332915,0.162956,61366.0,61365.0,0.000818]
[1727863333916,0.32765045,61366.0,61365.0,0.000818]
[1727863335586,0.32765045,61366.0,61365.0,0.003818]
[1727863335845,0.32765045,61366.0,61365.0,0.006818]
[1727863336071,0.32765045,61366.0,61365.0,0.002818]
[1727863336572,0.32765045,61366.0,61365.0,0.005818]
[1727863336782,0.32765045,61366.0,61365.0,0.003818]
[1727863337041,0.32765045,61366.0,61365.0,0.000818]
[1727863337266,0.32765045,61366.0,61365.0,0.001818]
[1727863337680,0.32765045,61366.0,61365.0,0.000818]
[1727863339184,0.32928845,61366.0,61365.0,0.000818]
[1727863339739,0.33128845,61366.0,61365.0,0.000818]
[1727863340012,0.32928845,61366.0,61365.0,0.000818]
[1727863340553,0.33028845,61366.0,61365.0,0.001818]
[1727863343972,0.43028845,61366.0,61365.0,0.001818]
[1727863344172,0.58219094,61366.0,61365.0,0.001818]
[1727863345954,0.43028845,61366.0,61365.0,0.001818]
[1727863346162,0.165594,61366.0,61365.0,0.001818]
[1727863346368,0.265594,61366.0,61365.0,0.001818]
[1727863346739,0.165594,61366.0,61365.0,0.001818]
[1727863347152,0.164594,61366.0,61365.0,0.000818]
[1727863347353,0.165594,61366.0,61365.0,0.000818]
[1727863350576,0.002638,61366.0,61365.0,0.000818]
[1727863350788,0.002638,61366.0,61365.0,0.339877]
[1727863352271,0.001638,61366.0,61365.0,0.339877]
[1727863352478,0.001638,61366.0,61365.0,0.351877]
[1727863352688,0.001638,61366.0,61365.0,0.345877]
[1727863352928,0.001638,61366.0,61365.0,0.339877]
[1727863353149,0.001638,61366.0,61365.0,0.353877]
[1727863353852,0.001638,61366.0,61365.0,0.346877]
[1727863354478,0.001638,61366.0,61365.0,0.347877]